bitfinex/quotes_ETHUSD_20241109
["timestamp","ask_amount","ask_price","bid_price","bid_amount"]
[1731185459768,0.0592936,3081.6,3081.1,0.30042394]
[1731185459963,0.0592936,3081.6,3081.2,0.30042394]
[1731185460215,0.0592936,3081.6,3081.3,0.30042394]
[1731185460502,0.0592936,3081.6,3080.9,3.47788919]
[1731185460503,0.55,3081.5,3081.0,0.30042394]
[1731185460664,0.0592936,3081.6,3081.0,0.30042394]
[1731185460665,0.0592936,3081.6,3081.1,0.30042394]
[1731185460866,0.05925285,3081.5,3081.2,0.30042394]
[1731185461063,0.7625,3081.8,3081.3,0.30042394]
[1731185461270,0.7625,3081.8,3081.0,0.37783131]
[1731185461271,0.7625,3081.8,3081.4,0.30042394]
[1731185461489,0.05932578,3081.7,3081.1,0.30012487]
[1731185461664,0.05932578,3081.7,3081.2,0.30012487]
[1731185461898,0.05932578,3081.7,3081.3,0.30012487]
[1731185462067,0.55,3082.0,3081.4,0.8187]
[1731185462510,0.05929336,3081.9,3081.4,0.8187]
[1731185462718,0.05929336,3081.9,3081.4,1.11882487]
[1731185462872,0.7625,3082.4,3081.5,2.65918919]
[1731185463179,0.05943917,3082.3,3081.6,0.34778892]
[1731185463386,0.05943917,3082.3,3081.7,0.8187]
[1731185463943,0.05940885,3082.2,3081.8,2.65918919]
[1731185464239,0.05940885,3082.2,3081.9,0.8187]
[1731185464404,1.01661127,3082.9,3082.1,2.65918919]
[1731185464405,0.7625,3082.9,3082.1,2.65918919]
[1731185464609,0.7625,3082.9,3082.1,3.00697811]
[1731185465844,0.55,3082.8,3082.1,3.00697811]
[1731185466048,0.60966121,3082.8,3082.1,3.00697811]
[1731185470139,0.05966121,3082.8,3082.2,0.8187]
[1731185470438,0.05966121,3082.8,3082.3,0.38256781]
[1731185470648,0.55,3083.1,3082.3,0.38256781]
[1731185470859,0.05769033,3082.7,3082.3,0.38256781]
[1731185471003,0.55,3083.1,3082.4,3.71093302]
[1731185471210,0.05765389,3082.6,3082.4,3.71093302]
[1731185471408,0.7625,3083.5,3082.6,0.8187]
[1731185471946,0.05794964,3083.4,3082.6,0.8187]
[1731185472149,0.05794964,3083.4,3082.6,1.23784274]
[1731185472739,1.22782689,3083.0,3081.8,0.8269]
[1731185472908,1.3345,3082.9,3081.9,0.48097091]
[1731185473107,0.55,3082.7,3081.8,0.8269]
[1731185473331,0.55,3082.5,3081.8,0.8269]
[1731185473551,0.55,3082.5,3081.8,1.30787091]
[1731185473751,0.0575853,3082.4,3081.8,0.8269]
[1731185474609,0.0575853,3082.4,3081.8,1.30787091]
[1731185474880,0.8420853,3082.4,3081.8,0.8269]
[1731185475537,0.8420853,3082.4,3081.8,1.30787091]
[1731185475855,0.8420853,3082.4,3081.8,0.8269]
[1731185476452,0.8420853,3082.4,3081.3,0.8269]
[1731185476614,0.8420853,3082.4,3081.3,1.09281892]
[1731185477550,0.0575853,3082.4,3081.6,0.8269]
[1731185477763,0.0575853,3082.4,3081.6,0.8917944]
[1731185478470,0.0575853,3082.4,3081.8,2.65918919]
[1731185478617,0.0575853,3082.4,3081.9,1.09281892]
[1731185478817,0.7845,3082.7,3081.9,1.09281892]
[1731185479043,0.05559808,3082.3,3081.9,1.09281892]
[1731185479260,0.7845,3082.7,3081.9,1.09281892]
[1731185479429,0.05556163,3082.2,3081.9,1.09281892]
[1731185479752,0.05552518,3082.1,3082.0,0.37520081]
[1731185479952,0.05552518,3082.1,3081.9,0.8269]
[1731185480156,0.7845,3082.7,3081.9,0.8269]
[1731185480451,0.05548872,3082.0,3081.9,0.8269]
[1731185480660,1.3345,3082.9,3081.9,0.8269]
[1731185480863,0.05548872,3082.0,3081.9,0.89178752]
[1731185481154,2.01232689,3082.9,3081.9,1.24688519]
[1731185481358,5.01232689,3082.9,3081.9,1.24688519]
[1731185481523,0.05578895,3082.8,3081.9,1.24688519]
[1731185482431,0.05578895,3082.8,3081.9,1.18199767]
[1731185483243,0.73361584,3082.8,3081.9,1.18199767]
[1731185483966,0.73361584,3082.8,3082.0,0.38411869]
[1731185484177,0.05578895,3082.8,3082.3,0.8269]
[1731185489337,0.73361584,3082.8,3082.3,0.8269]
[1731185490369,0.73361584,3082.8,3082.3,1.429586]
[1731185490574,0.73361584,3082.8,3082.3,0.8269]
[1731185491076,0.73361584,3082.8,3082.3,1.429586]
[1731185491264,0.73361584,3082.8,3082.3,0.8269]
[1731185491633,0.73361584,3082.8,3082.4,0.602686]
[1731185492034,0.73361584,3082.8,3082.4,0.60290324]
[1731185492347,0.73361584,3082.8,3082.4,1.20580596]
[1731185492558,0.73361584,3082.8,3082.4,0.60290324]
[1731185492868,0.67782689,3082.7,3082.4,0.60290324]
[1731185493372,0.05563513,3082.6,3082.4,0.60290324]
[1731185493967,0.05563513,3082.6,3082.5,0.60312158]
[1731185494268,0.05563513,3082.6,3082.4,0.60290324]
[1731185494477,0.05563513,3082.6,3082.5,0.60309646]
[1731185494646,0.67782689,3082.8,3082.5,0.60309646]
[1731185494846,0.05565431,3082.6,3082.4,0.60290324]
[1731185495034,0.67782689,3082.8,3082.5,0.60297698]
[1731185495234,0.67782689,3082.8,3082.4,0.60290324]
[1731185495575,0.67782689,3082.7,3082.5,0.60295884]
[1731185495764,0.67782689,3082.7,3082.4,0.60290324]
[1731185495936,0.05565431,3082.6,3082.5,0.6029198]
[1731185496247,0.05565431,3082.6,3082.4,0.60290324]
[1731185496248,1.3431,3082.5,3082.4,0.60290324]
[1731185496574,3.06581549,3082.5,3082.4,0.60290324]
[1731185496776,1.70796489,3082.5,3082.4,0.60290324]
[1731185497137,3.40165607,3082.5,3082.4,0.60290324]
[1731185498397,4.70796489,3082.5,3082.4,0.60290324]
[1731185498590,6.7403943,3082.5,3082.4,0.60290324]
[1731185498779,4.70796489,3082.5,3082.4,0.60290324]
[1731185499009,1.70796489,3082.5,3082.4,0.60290324]
[1731185499515,0.55,3082.3,3081.2,0.7835]
[1731185499804,0.55,3082.3,3081.2,0.34426892]
[1731185499805,0.67911399,3081.7,3081.2,0.34426892]
[1731185500015,0.67911399,3081.7,3081.1,2.65918919]
[1731185500173,0.05526504,3081.6,3081.1,2.65918919]
[1731185500824,0.05526504,3081.6,3081.2,0.7835]
[1731185501146,0.05526504,3081.6,3081.5,0.7835]
[1731185501430,1.01867098,3082.0,3081.5,0.7835]
[1731185501431,0.67911399,3081.9,3081.5,0.7835]
[1731185501710,1.01867098,3082.0,3081.5,0.7835]
[1731185501711,0.05522667,3081.6,3081.5,0.7835]
[1731185501916,0.67911399,3082.0,3081.5,1.12776892]
[1731185502077,0.05522667,3081.6,3081.5,1.12776892]
[1731185502280,0.67911399,3082.0,3081.5,1.12776892]
[1731185502898,0.05533605,3081.9,3081.5,1.12776892]
[1731185503683,0.05533605,3081.9,3081.5,0.7835]
[1731185505575,0.73445004,3081.9,3081.5,0.7835]
[1731185505925,0.05533605,3081.9,3081.5,0.7835]
[1731185506073,0.73445004,3081.9,3081.5,0.7835]
[1731185506280,0.05533605,3081.9,3081.5,0.7835]
[1731185506490,0.73445004,3081.9,3081.5,0.7835]
[1731185506693,0.05533605,3081.9,3081.5,0.7835]
[1731185507092,0.73445004,3081.9,3081.5,1.12776892]
[1731185507608,0.05533605,3081.9,3081.5,1.12776892]
[1731185508178,0.05533605,3081.9,3081.7,2.65918919]
[1731185508897,0.67911399,3082.1,3081.7,2.65918919]
[1731185509606,0.05350335,3082.0,3081.7,2.65918919]
[1731185510035,0.05350335,3082.0,3081.7,3.0443747]
[1731185510417,0.67911399,3082.2,3081.7,3.0443747]
[1731185510961,0.67911399,3082.2,3081.7,2.65918919]
[1731185511246,0.0535398,3082.1,3081.7,2.65918919]
[1731185517430,0.67911399,3082.0,3081.6,0.7835]
[1731185517626,0.73261734,3082.0,3081.6,0.7835]
[1731185519356,0.73261734,3082.0,3081.7,0.34426892]
[1731185519517,0.05350335,3082.0,3081.7,0.34426892]
[1731185519720,0.05350335,3082.0,3081.8,0.7934]
[1731185521371,0.67911399,3082.1,3081.8,0.7934]
[1731185521730,0.05168165,3082.0,3081.8,0.7934]
[1731185522759,0.67911399,3082.2,3081.8,0.7934]
[1731185523128,0.67911399,3082.2,3081.9,0.30168428]
[1731185523327,0.0517181,3082.1,3082.0,0.30168428]
[1731185523628,0.73083209,3082.1,3082.0,0.30168428]
[1731185524070,0.73083209,3082.1,3082.0,0.9051877]
[1731185524223,0.0517181,3082.1,3082.0,0.9051877]
[1731185524424,0.73083209,3082.1,3082.0,0.9051877]
[1731185525664,0.0517181,3082.1,3082.0,1.50943257]
[1731185525872,0.0517181,3082.1,3082.0,0.30197638]
[1731185526067,0.73083209,3082.1,3082.0,0.60395846]
[1731185526431,0.73083209,3082.1,3082.0,0.90594625]
[1731185526632,0.0517181,3082.1,3082.0,0.90594625]
[1731185526939,0.73083209,3082.1,3082.0,0.90594625]
[1731185527672,1.7103824,3082.1,3082.0,0.90594625]
[1731185528438,1.03126841,3082.1,3082.0,0.30198208]
[1731185528633,1.71049526,3082.1,3082.0,0.90611861]
[1731185528945,0.8563181,3082.1,3082.0,0.30208209]
[1731185529275,0.8563181,3082.1,3082.0,0.60416418]
[1731185529433,0.8563181,3082.1,3082.0,0.90624232]
[1731185530438,0.0517181,3082.1,3082.0,0.90624232]
[1731185530951,0.0517181,3082.1,3082.0,0.60432969]
[1731185531364,0.73099167,3082.1,3082.0,0.60432969]
[1731185532342,0.0517181,3082.1,3082.0,2.62511495]
[1731185533075,0.67927357,3082.3,3082.0,2.88762644]
[1731185533378,0.67927357,3082.3,3082.1,0.30225155]
[1731185533547,0.67927357,3082.3,3082.0,2.58537489]
[1731185533548,0.67927357,3082.3,3082.2,0.30225155]
[1731185534441,0.67927357,3082.4,3082.2,1.52963681]
[1731185534676,0.67927357,3082.4,3082.3,0.30225155]
[1731185534998,0.67927357,3082.4,3082.3,1.09315155]
[1731185535162,0.67927357,3082.5,3082.3,1.09315155]
[1731185535493,0.67927357,3082.5,3082.4,1.52963681]
[1731185535784,0.67927357,3082.5,3082.4,0.7854789]
[1731185535990,1.50997357,3082.5,3082.4,0.7854789]
[1731185536186,0.8307,3082.5,3082.4,0.7854789]
[1731185536752,1.84937098,3082.5,3082.4,0.78527369]
[1731185537574,0.8307,3082.5,3082.4,0.78527369]
[1731185537754,1.7014599,3082.5,3082.4,0.78527369]
[1731185537954,3.05968788,3082.5,3082.4,0.78527369]
[1731185538287,2.50968788,3082.5,3082.4,0.78527369]
[1731185538457,1.1514599,3082.5,3082.4,0.78527369]
[1731185538987,2.85017252,3082.5,3082.4,0.78527369]
[1731185539162,2.52941262,3082.5,3082.4,0.78527369]
[1731185539369,3.07941262,3082.5,3082.4,0.78527369]
[1731185539555,3.07941262,3082.5,3082.4,0.30202834]
[1731185539753,1.3807,3082.5,3082.4,0.30202834]
[1731185540077,0.55,3082.4,3082.0,0.30207814]
[1731185540277,1.35954157,3082.2,3082.0,0.30207814]
[1731185540592,1.35954157,3082.2,3082.1,1.57653427]
[1731185540769,1.01965264,3082.2,3082.1,1.57653427]
[1731185541087,1.06811375,3082.2,3082.1,1.57653427]
[1731185541296,1.06811375,3082.2,3082.1,1.85692622]
[1731185543468,0.04846111,3082.2,3082.1,1.27419774]
[1731185543788,0.04845835,3082.2,3082.1,1.57625883]
[1731185544097,1.01965264,3082.3,3082.1,1.57625883]
[1731185544277,1.01965264,3082.3,3082.2,0.78535883]
[1731185546606,1.35954157,3082.4,3082.2,0.78535883]
[1731185546806,1.7002459,3082.5,3082.3,0.78559759]
[1731185547091,1.7002459,3082.5,3082.4,0.78559759]
[1731185550114,1.7002459,3082.6,3082.1,0.7909]
[1731185550313,1.02037416,3082.3,3082.2,0.78573197]
[1731185550476,1.36049889,3082.4,3082.2,0.78573197]
[1731185550673,1.36049889,3082.4,3082.3,0.78573197]
[1731185553626,1.36049889,3082.4,3082.1,0.7909]
[1731185553919,1.36049889,3082.4,3082.3,0.30214888]
[1731185554088,1.36049889,3082.4,3082.3,0.78558259]
[1731185554912,1.36049889,3082.4,3082.3,0.78564283]
[1731185556211,1.4071427,3082.4,3082.3,0.78564283]
[1731185556820,1.4071427,3082.4,3082.1,0.7909]
[1731185557115,1.02046629,3082.3,3082.2,0.78560374]
[1731185557288,1.02046629,3082.3,3082.2,0.78559081]
[1731185557488,1.06707365,3082.3,3082.2,0.78559081]
[1731185560330,1.06707365,3082.3,3082.1,0.7909]
[1731185560488,1.06707365,3082.3,3082.2,0.78569377]
[1731185563824,1.06707365,3082.3,3081.9,2.05368526]
[1731185564134,1.06707365,3082.3,3082.0,0.7858104]
[1731185564295,1.06707365,3082.3,3081.9,2.25905379]
[1731185564296,1.06707365,3082.3,3082.1,0.7858104]
[1731185564624,1.06707365,3082.3,3081.9,2.25905379]
[1731185564625,1.06707365,3082.3,3082.2,0.7858104]
[1731185566089,2.15760625,3082.3,3082.2,0.7858104]
[1731185566532,2.70760625,3082.3,3082.2,0.7858104]
[1731185566702,1.78793063,3082.3,3082.2,0.7858104]
[1731185567026,1.78793063,3082.3,3082.2,0.30223477]
[1731185567530,0.55,3082.2,3081.4,1.22738526]
[1731185567734,1.02069563,3081.9,3081.5,0.48363419]
[1731185567896,1.02069563,3081.8,3081.6,0.48363419]
[1731185568095,1.06712135,3081.8,3081.6,0.48363419]
[1731185568438,1.81762135,3081.8,3081.6,0.48363419]
[1731185568776,1.06712135,3081.8,3081.7,0.78590561]
[1731185570641,1.06712135,3081.8,3081.7,0.78553125]
[1731185570799,0.04642572,3081.8,3081.7,0.78553125]
[1731185573763,0.04642572,3081.8,3081.6,1.22738526]
[1731185574115,0.04642572,3081.8,3081.7,0.78508482]
[1731185575634,1.02069563,3082.0,3081.7,0.78508482]
[1731185575837,1.31385794,3082.0,3081.8,0.78508482]
[1731185576138,1.02069563,3082.0,3081.9,0.78508482]
[1731185577122,1.02069563,3082.0,3081.9,0.78468132]
[1731185577439,1.02069563,3082.0,3078.9,2.07525432]
[1731185577440,0.55,3081.4,3079.5,1.35347233]
[1731185577647,0.55,3080.2,3079.4,0.8248]
[1731185577848,0.68013538,3079.8,3079.4,0.8248]
[1731185578037,1.36004128,3080.1,3079.4,0.8248]
[1731185578038,0.68013538,3080.1,3079.4,0.8248]
[1731185578236,0.68013538,3080.0,3079.4,0.8248]
[1731185578448,0.68013538,3080.4,3079.8,1.12738526]
[1731185579220,1.23013538,3080.3,3079.4,0.8248]
[1731185579425,0.68013538,3080.3,3079.6,1.22738526]
[1731185579730,0.68013538,3080.4,3079.6,1.22738526]
[1731185580258,0.68013538,3080.4,3079.2,0.01]
[1731185580259,0.55,3080.5,3079.9,1.22738526]
[1731185581350,0.7696,3080.6,3079.7,0.8248]
[1731185581548,0.7696,3080.6,3079.7,1.17356146]
[1731185584368,0.7696,3080.6,3079.7,0.8248]
[1731185586141,0.04525503,3080.5,3079.7,0.8248]
[1731185590675,0.04525503,3080.5,3079.9,0.7866]
[1731185591174,1.0957,3081.0,3079.9,0.7866]
[1731185591469,3.0,3081.3,3080.1,0.7866]
[1731185591470,0.7799,3081.3,3080.1,0.7866]
[1731185591673,0.04232993,3080.9,3080.2,2.72773733]
[1731185591876,1.60401354,3081.2,3080.2,2.72773733]
[1731185592045,0.04229345,3080.8,3080.3,1.08688099]
[1731185592250,13.1399,3081.5,3080.4,0.06491804]
[1731185592473,0.04078734,3080.7,3080.4,0.06491804]
[1731185592679,13.1399,3081.5,3080.4,0.30034034]
[1731185592888,13.1399,3081.5,3080.5,3.47851457]
[1731185593040,0.04104268,3081.4,3080.9,0.8157]
[1731185593466,0.7699,3081.8,3080.9,0.8157]
[1731185593786,0.03959794,3081.3,3081.2,0.8157]
[1731185594085,0.33880937,3082.0,3081.2,0.8157]
[1731185594086,0.33880937,3082.0,3081.2,0.88060342]
[1731185594433,0.03852079,3081.9,3081.2,0.88060342]
[1731185594747,0.03852079,3081.9,3081.2,1.23494522]
[1731185595151,0.7699,3082.5,3081.2,1.23494522]
[1731185595396,0.03848433,3081.8,3081.2,0.88060342]
[1731185595690,0.03844787,3081.7,3081.2,0.88060342]
[1731185595901,0.03844787,3081.7,3081.3,0.30035149]
[1731185596057,0.55,3082.4,3081.3,0.30035149]
[1731185596597,0.55,3082.2,3081.4,2.66281457]
[1731185596894,0.0385937,3082.1,3081.4,2.66281457]
[1731185598587,0.55,3082.4,3081.4,3.01066603]
[1731185598892,0.55,3082.4,3081.4,2.66281457]
[1731185599191,0.0386666,3082.3,3081.4,2.66281457]
[1731185603398,0.0386666,3082.3,3081.6,1.22767188]
[1731185603686,0.0386666,3082.3,3081.7,0.8157]
[1731185609786,0.0386666,3082.3,3081.8,1.22767188]
[1731185611306,0.0386666,3082.3,3081.7,0.8157]
[1731185621879,0.55,3082.0,3080.9,0.7945]
[1731185622328,0.7951,3082.1,3080.9,0.7945]
[1731185622329,0.83070893,3081.9,3081.0,1.22767188]
[1731185622479,0.55,3081.8,3080.7,1.22767188]
[1731185622691,0.782,3081.7,3080.7,1.22767188]
[1731185622913,0.81753349,3081.7,3080.7,1.22767188]
[1731185624331,0.20476689,3081.6,3080.7,1.22767188]
[1731185624492,0.24026266,3081.6,3080.7,1.22767188]
[1731185625891,0.24026266,3081.6,3080.9,1.22767188]
[1731185626795,0.03549577,3081.6,3081.1,1.22767188]
[1731185627122,0.03549577,3081.6,3081.3,1.22767188]
[1731185627321,0.03549577,3081.6,3081.1,2.05707188]
[1731185631392,0.71563115,3081.6,3081.1,2.05707188]
[1731185631998,0.71563115,3081.6,3081.1,1.22767188]
[1731185632333,1.32239973,3081.6,3081.1,1.22767188]
[1731185633435,0.68013538,3081.4,3081.1,1.22767188]
[1731185633739,0.03535046,3081.3,3081.1,1.22767188]
[1731185636449,0.68013538,3081.5,3081.1,1.22767188]
[1731185636734,0.68013538,3081.5,3081.0,0.06490529]
[1731185636735,0.68013538,3081.5,3081.4,1.22767188]
[1731185637296,1.02005465,3081.7,3081.4,1.22767188]
[1731185637297,1.02005465,3081.6,3081.4,1.22767188]
[1731185639624,2.48247032,3081.7,3081.4,1.22767188]
[1731185639625,1.02005465,3081.5,3081.4,1.22767188]
[1731185641218,1.02005465,3081.6,3081.4,1.22767188]
[1731185642038,1.02005465,3081.5,3081.4,1.22767188]
[1731185642647,2.48346007,3081.7,3081.4,2.04717188]
[1731185642648,1.02005465,3081.6,3081.4,2.04717188]
[1731185642831,0.67931296,3081.6,3081.5,1.22767188]
[1731185643003,1.02005465,3081.7,3081.5,1.22767188]
[1731185643004,0.67931296,3081.7,3081.5,1.22767188]
[1731185644045,1.82175465,3081.6,3081.2,1.22767188]
[1731185644228,0.67931401,3081.3,3080.8,0.50321607]
[1731185644403,0.67931401,3081.3,3081.0,1.22767188]
[1731185644607,0.67931401,3081.1,3080.8,1.22767188]
[1731185645317,0.67931401,3081.0,3080.5,1.32271607]
[1731185645522,1.48101401,3081.1,3080.7,1.22767188]
[1731185645949,0.03405672,3081.0,3080.7,1.22767188]
[1731185646936,0.71337073,3081.0,3080.7,1.22767188]
[1731185647139,0.03405672,3081.0,3080.5,1.32271607]
[1731185647349,0.71337073,3081.0,3080.6,1.22767188]
[1731185648037,0.67931401,3080.9,3080.6,1.22767188]
[1731185648550,0.03398376,3080.8,3080.6,0.25509339]
[1731185648755,0.03398376,3080.8,3080.7,1.22767188]
[1731185649056,0.67931401,3081.1,3080.7,1.22767188]
[1731185649247,0.71337073,3081.0,3080.7,1.22767188]
[1731185649572,0.71337073,3081.0,3080.5,1.32326201]
[1731185649876,0.71337073,3081.0,3080.6,1.22767188]
[1731185650230,0.03405672,3081.0,3080.6,1.22767188]
[1731185650773,0.71337073,3081.0,3080.6,1.22767188]
[1731185651146,0.71337073,3081.0,3080.8,1.22767188]
[1731185651375,0.03405672,3081.0,3080.8,1.22767188]
[1731185651751,0.71337073,3081.0,3080.8,1.22767188]
[1731185652072,0.03405672,3081.0,3080.5,0.8195]
[1731185652277,0.03405672,3081.0,3080.6,1.22767188]
[1731185652278,0.67931401,3080.9,3080.6,1.22767188]
[1731185652574,0.03398376,3080.8,3080.6,1.73184626]
[1731185652868,0.67931401,3081.0,3080.6,1.73184626]
[1731185653079,0.67931401,3081.0,3080.6,1.22767188]
[1731185653372,0.03402024,3080.9,3080.6,1.22767188]
[1731185653734,0.03402024,3080.9,3080.7,1.10970409]
[1731185653958,0.03402024,3080.9,3080.8,0.60525109]
[1731185654473,1.48923425,3080.9,3080.8,0.60520098]
[1731185654790,1.48923425,3080.9,3080.7,0.5043759]
[1731185654791,1.06074077,3080.9,3080.7,0.5043759]
[1731185654940,1.01869416,3080.8,3080.7,0.5043759]
[1731185655338,1.05265699,3080.8,3080.7,0.5043759]
[1731185655574,0.03396283,3080.8,3080.7,0.5043759]
[1731185656048,0.71284419,3080.8,3080.7,1.10927048]
[1731185656576,0.71284419,3080.8,3080.7,1.59308539]
[1731185657379,0.71284419,3080.8,3080.7,1.59274475]
[1731185658772,0.71284419,3080.8,3080.7,1.89501771]
[1731185658995,0.71284419,3080.8,3080.7,1.29028757]
[1731185661051,0.03396283,3080.8,3080.7,1.29028757]
[1731185661251,0.67888136,3081.0,3080.7,1.67501401]
[1731185661457,0.67888136,3081.0,3080.9,1.22767188]
[1731185661777,0.67888136,3081.1,3080.9,1.22767188]
[1731185662475,0.67888136,3081.0,3080.9,1.22767188]
[1731185665406,1.01869416,3081.1,3080.9,1.22767188]
[1731185665908,1.01869416,3081.0,3080.7,1.22767188]
[1731185666089,0.6793407,3080.9,3080.7,1.22767188]
[1731185666266,0.6793407,3080.8,3080.7,1.22767188]
[1731185673404,1.01869416,3080.9,3080.7,1.22767188]
[1731185674404,0.67953478,3080.8,3080.7,1.22767188]
[1731185674636,0.67953493,3080.8,3080.7,1.22767188]
[1731185675142,1.01869416,3080.9,3080.7,1.22767188]
[1731185675317,0.67950231,3080.8,3080.7,1.22767188]
[1731185675517,0.67952124,3080.8,3080.7,1.22767188]
[1731185675906,0.71094721,3080.8,3080.7,1.22767188]
[1731185676547,0.03142597,3080.8,3080.7,1.22767188]
[1731185677045,0.71095404,3080.8,3080.7,1.22767188]
[1731185683245,0.71095404,3080.8,3080.5,0.7606]
[1731185683450,0.71095404,3080.8,3080.7,1.22767188]
[1731185684263,1.47025404,3080.8,3080.2,0.7607]
[1731185684424,1.47025404,3080.8,3080.5,1.22767188]
[1731185685144,1.47025404,3080.8,3080.7,1.22767188]
[1731185686265,0.71095404,3080.8,3080.7,1.22767188]
[1731185686714,0.03142597,3080.8,3080.7,1.22767188]
[1731185687443,0.03142597,3080.8,3080.7,1.42650907]
[1731185688021,0.03142597,3080.8,3080.7,1.22767188]
[1731185689449,1.1571242,3080.8,3080.7,1.22767188]
[1731185693259,0.03142597,3080.8,3080.7,1.22767188]
[1731185693692,0.7593,3081.4,3080.7,1.22767188]
[1731185693865,0.0308985,3080.8,3080.7,1.22767188]
[1731185694056,0.0308985,3080.8,3080.7,1.42650907]
[1731185694057,1.12587351,3080.8,3080.7,1.42650907]
[1731185694390,1.15677201,3080.8,3080.7,1.42650907]
[1731185694572,1.15677201,3080.8,3080.7,1.22767188]
[1731185697494,1.15677201,3080.8,3080.6,0.7607]
[1731185697699,1.0212665,3080.7,3080.2,0.7569]
[1731185697884,0.68084722,3080.5,3080.2,0.7569]
[1731185698388,0.03075572,3080.4,3080.2,0.7569]
[1731185699703,0.03075572,3080.4,3080.3,1.22767188]
[1731185699994,0.03075572,3080.4,3080.3,1.42712907]
[1731185700877,0.68084722,3080.6,3080.4,0.7569]
[1731185701064,0.68084722,3080.6,3080.5,0.06491765]
[1731185701262,0.68084722,3080.7,3080.4,0.7569]
[1731185701604,0.68084722,3080.6,3080.5,0.21840291]
[1731185701894,0.68084722,3080.6,3080.4,0.7569]
[1731185702656,0.68084722,3080.6,3080.5,1.29258888]
[1731185702960,0.68084722,3080.8,3080.6,0.7569]
[1731185703159,0.68084722,3080.8,3080.7,2.45534376]
[1731185703391,0.68084722,3080.9,3080.7,2.45534376]
[1731185703694,0.68084722,3080.9,3080.8,0.32122438]
[1731185704173,1.0212665,3081.0,3080.8,0.32122438]
[1731185704818,0.6807392,3080.9,3080.8,0.32122438]
[1731185706523,0.6807392,3080.9,3080.7,1.22767188]
[1731185706718,0.6807392,3080.9,3080.6,0.7569]
[1731185706922,0.6807392,3080.9,3079.8,1.69765464]
[1731185706923,0.6807392,3080.7,3080.5,1.22767188]
[1731185707114,1.0212665,3080.6,3079.8,0.01]
[1731185707418,1.0212665,3080.5,3079.8,1.22767188]
[1731185707717,0.68070197,3080.3,3079.9,0.21704891]
[1731185708628,0.03580902,3080.2,3079.9,0.21704891]
[1731185708939,0.68070197,3080.3,3080.1,1.22767188]
[1731185710365,0.68070197,3080.3,3080.2,0.7569]
[1731185710571,0.68070197,3080.5,3080.2,0.7569]
[1731185710728,0.68070197,3080.5,3080.4,1.22767188]
[1731185711058,0.68070197,3080.6,3080.4,1.22767188]
[1731185711262,0.68070197,3080.6,3080.5,1.22767188]
[1731185711666,1.0212665,3080.7,3080.5,1.22767188]
[1731185711964,1.0212665,3080.6,3080.5,1.22767188]
[1731185712927,1.36160062,3080.8,3080.5,1.22767188]
[1731185712928,1.0212665,3080.7,3080.5,1.22767188]
[1731185714141,1.0212665,3080.6,3080.5,1.22767188]
[1731185714572,1.12548797,3080.6,3080.5,1.22767188]
[1731185714775,1.02083857,3080.6,3080.5,1.22767188]
[1731185715663,1.12539904,3080.6,3080.5,1.22767188]
[1731185718971,1.12539904,3080.6,3080.5,1.83376365]
[1731185721072,1.16855835,3080.6,3080.5,1.83376365]
[1731185721225,1.16855835,3080.6,3080.5,2.33880851]
[1731185721429,1.16855835,3080.6,3080.5,1.89898252]
[1731185721729,1.97385835,3080.6,3080.5,2.62160954]
[1731185722377,1.97385835,3080.6,3080.5,3.1266544]
[1731185722534,1.97385835,3080.6,3080.5,2.62160954]
[1731185722744,1.86907305,3080.6,3080.5,3.1266544]
[1731185722968,1.97367974,3080.6,3080.5,3.1266544]
[1731185723404,1.86906684,3080.6,3080.5,3.1266544]
[1731185723601,1.06376684,3080.6,3080.5,3.1266544]
[1731185724394,1.06376684,3080.6,3080.5,2.62160954]
[1731185724600,1.06376684,3080.6,3080.5,3.12644603]
[1731185726623,1.06376684,3080.6,3080.5,3.12647633]
[1731185727704,1.06376684,3080.6,3080.5,3.12589434]
[1731185729172,1.86906684,3080.6,3080.5,1.89822246]
[1731185729380,3.65823066,3080.6,3080.5,1.39337606]
[1731185729563,3.33516391,3080.6,3080.5,1.39337606]
[1731185729970,1.97356329,3080.6,3080.5,1.39337606]
[1731185731016,1.97356329,3080.6,3080.5,1.39355061]
[1731185731397,3.33516391,3080.6,3080.5,1.39355061]
[1731185731770,1.97356329,3080.6,3080.5,1.39355061]
[1731185732176,3.33417037,3080.6,3080.5,1.39355061]
[1731185733016,3.33417037,3080.6,3080.5,1.39370263]
[1731185733885,7.22420697,3080.6,3080.5,1.39370263]
[1731185734229,7.22420697,3080.6,3079.1,2.14465411]
[1731185734230,0.7702,3080.4,3080.1,0.50523519]
[1731185734369,0.7702,3080.2,3080.1,0.50523519]
[1731185734686,1.89530398,3080.2,3080.1,1.09154779]
[1731185734886,1.94296373,3080.2,3080.1,1.09154779]
[1731185735110,3.64393749,3080.2,3080.1,1.09152169]
[1731185735275,3.64393749,3080.2,3080.1,1.39471319]
[1731185735471,1.94296373,3080.2,3080.1,1.39471319]
[1731185737503,3.30224552,3080.2,3080.1,1.3942854]
[1731185739379,2.53204552,3080.2,3080.1,1.3942854]
[1731185739597,1.06673913,3080.2,3080.1,1.71712247]
[1731185739911,0.04765975,3080.2,3080.1,1.71653137]
[1731185740219,0.04765975,3080.2,3080.1,2.32213062]
[1731185740422,0.6793682,3080.4,3080.1,2.32213062]
[1731185740586,0.03895714,3080.2,3080.1,1.43391839]
[1731185740788,0.6793682,3080.5,3080.1,2.52373118]
[1731185741132,0.6793682,3080.5,3080.2,1.39255378]
[1731185741280,0.6793682,3080.5,3080.3,0.78710223]
[1731185741483,0.6793682,3080.5,3080.4,0.78710223]
[1731185741683,0.6793682,3080.5,3080.4,1.39255378]
[1731185743218,0.6793682,3080.5,3080.4,2.62022566]
[1731185744294,0.6793682,3080.5,3080.4,2.01477411]
[1731185744478,0.6793682,3080.5,3080.4,2.6205919]
[1731185744679,0.6793682,3080.5,3080.4,1.7121658]
[1731185744879,0.6793682,3080.5,3080.4,1.71215753]
[1731185745120,0.6793682,3080.5,3080.4,1.22767188]
[1731185745320,0.6793682,3080.5,3080.4,2.13610032]
[1731185745685,0.6793682,3080.5,3080.4,2.62059549]
[1731185746888,0.6793682,3080.5,3080.4,2.13628324]
[1731185747088,0.6793682,3080.5,3080.4,2.62087597]
[1731185748835,0.6793682,3080.6,3080.4,2.62087597]
[1731185748997,0.6793682,3080.5,3080.4,1.22767188]
[1731185749199,0.6793682,3080.5,3080.4,2.62095955]
[1731185751128,0.72718292,3080.5,3080.4,2.62095955]
[1731185751331,0.72718292,3080.5,3080.4,1.22767188]
[1731185751332,0.04781472,3080.5,3080.4,1.22767188]
[1731185751501,0.04781472,3080.5,3080.4,2.62153325]
[1731185754555,0.04781472,3080.5,3080.4,2.62122238]
[1731185754851,0.72772286,3080.5,3080.4,2.62122238]
[1731185755160,0.72772286,3080.5,3080.4,2.62115696]
[1731185756760,4.53859494,3080.5,3080.4,1.39348508]
[1731185756970,1.3161,3080.4,3079.9,1.22767188]
[1731185757113,1.3161,3080.4,3080.0,0.78810136]